[Event "Titled Tuesday Blitz August 16 Early 2022"]
[White "Samunenkov, Ihor"]
[Black "Gubajdullin, Alexei"]
[WhiteFideId "14187086"]
[BlackFideId "4141202"]
[WhiteElo "2441"]
[BlackElo "2214"]
[Result "1/2-1/2"]
[Round "09"]
[TimeControl "180+1"]
[Date "2022.08.16"]
[WhiteClock "0:00:08"]
[BlackClock "0:00:07"]

1. d4 {[%clk 0:03:00]}  Nf6 {[%clk 0:02:58]} 2. c4 {[%clk 0:03:00]}  g6 {[%clk 0:02:58]} 3. Nf3 {[%clk 0:02:58]}  Bg7 {[%clk 0:02:57]} 4. g3 {[%clk 0:02:59]}  O-O {[%clk 0:02:58]} 5. Bg2 {[%clk 0:03:00]}  d6 {[%clk 0:02:58]} 6. O-O {[%clk 0:03:01]}  Nc6 {[%clk 0:02:58]} 7. Nc3 {[%clk 0:03:01]}  a6 {[%clk 0:02:59]} 8. b3 {[%clk 0:02:59]}  Rb8 {[%clk 0:02:58]} 9. Bb2 {[%clk 0:02:59]}  b5 {[%clk 0:02:58]} 10. cxb5 {[%clk 0:03:00]}  axb5 {[%clk 0:02:58]} 11. Rc1 {[%clk 0:03:01]}  b4 {[%clk 0:02:53]} 12. Na4 {[%clk 0:03:00]}  Na7 {[%clk 0:02:53]} 13. Nd2 {[%clk 0:02:50]}  Bd7 {[%clk 0:02:44]} 14. Nc4 {[%clk 0:02:44]}  Bc6 {[%clk 0:02:33]} 15. d5 {[%clk 0:02:22]}  Ba8 {[%clk 0:02:31]} 16. e4 {[%clk 0:02:05]}  Nb5 {[%clk 0:02:15]} 17. Qe2 {[%clk 0:01:42]}  c5 {[%clk 0:02:00]} 18. dxc6 {[%clk 0:01:35]}  Bxc6 {[%clk 0:02:00]} 19. Nxd6 {[%clk 0:01:27]}  Qxd6 {[%clk 0:01:22]} 20. e5 {[%clk 0:01:27]}  Nd4 {[%clk 0:01:22]} 21. Bxd4 {[%clk 0:01:16]}  Qxd4 {[%clk 0:01:21]} 22. exf6 {[%clk 0:01:17]}  Bb5 {[%clk 0:01:11]} 23. Qf3 {[%clk 0:00:40]}  Qxf6 {[%clk 0:01:05]} 24. Rfd1 {[%clk 0:00:38]}  Qxf3 {[%clk 0:01:02]} 25. Bxf3 {[%clk 0:00:39]}  Rfd8 {[%clk 0:01:02]} 26. Kg2 {[%clk 0:00:28]}  Bd4 {[%clk 0:00:55]} 27. Nc5 {[%clk 0:00:26]}  e5 {[%clk 0:00:50]} 28. Nb7 {[%clk 0:00:13]}  Rd7 {[%clk 0:00:48]} 29. Na5 {[%clk 0:00:13]}  Ra7 {[%clk 0:00:43]} 30. Nc6 {[%clk 0:00:08]}  Bxc6 {[%clk 0:00:42]} 31. Rxc6 {[%clk 0:00:08]}  Rxa2 {[%clk 0:00:42]} 32. Rf1 {[%clk 0:00:08]}  Rb6 {[%clk 0:00:31]} 33. Rc8+ {[%clk 0:00:07]}  Kg7 {[%clk 0:00:30]} 34. Rc7 {[%clk 0:00:05]}  Rf6 {[%clk 0:00:29]} 35. h4 {[%clk 0:00:05]}  Rb2 {[%clk 0:00:23]} 36. h5 {[%clk 0:00:05]}  Rxb3 {[%clk 0:00:21]} 37. Rb7 {[%clk 0:00:04]}  Rb2 {[%clk 0:00:21]} 38. hxg6 {[%clk 0:00:03]}  hxg6 {[%clk 0:00:20]} 39. g4 {[%clk 0:00:04]}  Rf4 {[%clk 0:00:18]} 40. Bd5 {[%clk 0:00:03]}  Rbxf2+ {[%clk 0:00:17]} 41. Rxf2 {[%clk 0:00:03]}  Rxf2+ {[%clk 0:00:17]} 42. Kg3 {[%clk 0:00:04]}  Rf4 {[%clk 0:00:16]} 43. Kh3 {[%clk 0:00:02]}  Bc3 {[%clk 0:00:13]} 44. Bb3 {[%clk 0:00:02]}  Rf3+ {[%clk 0:00:12]} 45. Kg2 {[%clk 0:00:02]}  e4 {[%clk 0:00:12]} 46. Bd5 {[%clk 0:00:02]}  Rf4 {[%clk 0:00:11]} 47. Kg3 {[%clk 0:00:03]}  Be5 {[%clk 0:00:11]} 48. Rxb4 {[%clk 0:00:02]}  Rf3+ {[%clk 0:00:07]} 49. Kg2 {[%clk 0:00:03]}  Rg3+ {[%clk 0:00:07]} 50. Kf2 {[%clk 0:00:02]}  Rxg4 {[%clk 0:00:08]} 51. Rxe4 {[%clk 0:00:03]}  Rxe4 {[%clk 0:00:06]} 52. Bxe4 {[%clk 0:00:04]}  f5 {[%clk 0:00:06]} 53. Bd3 {[%clk 0:00:03]}  Kf6 {[%clk 0:00:06]} 54. Kf3 {[%clk 0:00:03]}  Kg5 {[%clk 0:00:07]} 55. Kg2 {[%clk 0:00:03]}  Kf6 {[%clk 0:00:06]} 56. Bc2 {[%clk 0:00:03]}  g5 {[%clk 0:00:07]} 57. Bd3 {[%clk 0:00:04]}  g4 {[%clk 0:00:07]} 58. Bc2 {[%clk 0:00:04]}  Kg5 {[%clk 0:00:07]} 59. Bd3 {[%clk 0:00:04]}  Bd4 {[%clk 0:00:07]} 60. Bc2 {[%clk 0:00:05]}  Kf4 {[%clk 0:00:07]} 61. Bd3 {[%clk 0:00:05]}  Kg5 {[%clk 0:00:07]} 62. Bc2 {[%clk 0:00:05]}  f4 {[%clk 0:00:07]} 63. Bd1 {[%clk 0:00:06]}  Kf5 {[%clk 0:00:07]} 64. Be2 {[%clk 0:00:06]}  Kg5 {[%clk 0:00:07]} 65. Bd1 {[%clk 0:00:07]}  Kf5 {[%clk 0:00:07]} 66. Be2 {[%clk 0:00:07]}  Kg5 {[%clk 0:00:07]} 67. Bd1 {[%clk 0:00:08]} 1/2-1/2


[Site "https://www.chess.com"]

[Event "Titled Tuesday Blitz August 16 Early 2022"]
[White "Schut, Han"]
[Black "Kiseljova, Marya"]
[WhiteFideId "1005561"]
[BlackFideId "4155009"]
[WhiteElo "2024"]
[BlackElo "1697"]
[Result "1-0"]
[Round "09"]
[TimeControl "180+2"]
[Date "2022.08.18"]
[WhiteClock "0:00:00"]
[BlackClock "0:00:00"]

1. e4 {[%clk 0:00:00]}  c5 {[%clk 0:00:00]} 2. Nf3 {[%clk 0:00:00]}  Nc6 {[%clk 0:00:00]} 3. d4 {[%clk 0:00:00]}  cxd4 {[%clk 0:00:00]} 4. Nxd4 {[%clk 0:00:00]}  g6 {[%clk 0:00:00]} 5. c4 {[%clk 0:00:00]}  Bg7 {[%clk 0:00:00]} 6. Be3 {[%clk 0:00:00]}  d6 {[%clk 0:00:00]} 7. Nc3 {[%clk 0:00:00]}  Nf6 {[%clk 0:00:00]} 8. Be2 {[%clk 0:00:00]}  O-O {[%clk 0:00:00]} 9. Qd2 {[%clk 0:00:00]}  Bd7 {[%clk 0:00:00]} 10. f3 {[%clk 0:00:00]}  Nxd4 {[%clk 0:00:00]} 11. Bxd4 {[%clk 0:00:00]}  a5 {[%clk 0:00:00]} 12. b3 {[%clk 0:00:00]}  Bc6 {[%clk 0:00:00]} 13. Rc1 {[%clk 0:00:00]}  Nd7 {[%clk 0:00:00]} 14. Be3 {[%clk 0:00:00]}  Nc5 {[%clk 0:00:00]} 15. O-O {[%clk 0:00:00]}  Be5 {[%clk 0:00:00]} 16. Rc2 {[%clk 0:00:00]}  e6 {[%clk 0:00:00]} 17. g3 {[%clk 0:00:00]}  h5 {[%clk 0:00:00]} 18. Bd3 {[%clk 0:00:00]}  Qf6 {[%clk 0:00:00]} 19. Nb5 {[%clk 0:00:00]}  Bxb5 {[%clk 0:00:00]} 20. cxb5 {[%clk 0:00:00]}  Bd4 {[%clk 0:00:00]} 21. Kg2 {[%clk 0:00:00]}  Bxe3 {[%clk 0:00:00]} 22. Qxe3 {[%clk 0:00:00]}  h4 {[%clk 0:00:00]} 23. e5 {[%clk 0:00:00]}  Qh8 {[%clk 0:00:00]} 24. exd6 {[%clk 0:00:00]}  h3+ {[%clk 0:00:00]} 25. Kf2 {[%clk 0:00:00]}  b6 {[%clk 0:00:00]} 26. Be4 {[%clk 0:00:00]}  Rad8 {[%clk 0:00:00]} 27. Rd1 {[%clk 0:00:00]}  Qe5 {[%clk 0:00:00]} 28. Bc6 {[%clk 0:00:00]}  Qf6 {[%clk 0:00:00]} 29. Rdd2 {[%clk 0:00:00]}  e5 {[%clk 0:00:00]} 30. Rxc5 {[%clk 0:00:00]}  bxc5 {[%clk 0:00:00]} 31. Qxc5 {[%clk 0:00:00]}  Kg7 {[%clk 0:00:00]} 32. Re2 {[%clk 0:00:00]}  Qxd6 {[%clk 0:00:00]} 33. Qxe5+ {[%clk 0:00:00]}  Qxe5 {[%clk 0:00:00]} 34. Rxe5 {[%clk 0:00:00]}  Rd2+ {[%clk 0:00:00]} 35. Re2 {[%clk 0:00:00]}  Rd1 {[%clk 0:00:00]} 36. b6 {[%clk 0:00:00]}  Rh1 {[%clk 0:00:00]} 37. Ke3 {[%clk 0:00:00]}  Rc8 {[%clk 0:00:00]} 38. b7 {[%clk 0:00:00]}  Rb8 {[%clk 0:00:00]} 39. Kd4 {[%clk 0:00:00]}  Rc1 {[%clk 0:00:00]} 40. Kd5 {[%clk 0:00:00]}  Rd1+ {[%clk 0:00:00]} 41. Kc5 {[%clk 0:00:00]}  Rc1+ {[%clk 0:00:00]} 42. Kb6 {[%clk 0:00:00]}  Rd8 {[%clk 0:00:00]} 43. Kc7 {[%clk 0:00:00]}  Rf8 {[%clk 0:00:00]} 44. Re4 {[%clk 0:00:00]}  Rc2 {[%clk 0:00:00]} 45. Rc4 {[%clk 0:00:00]}  Rxh2 {[%clk 0:00:00]} 46. b8=Q {[%clk 0:00:00]}  Rxb8 {[%clk 0:00:00]} 47. Kxb8 {[%clk 0:00:00]}  Rxa2 {[%clk 0:00:00]} 48. f4 {[%clk 0:00:00]}  h2 {[%clk 0:00:00]} 49. Kb7 {[%clk 0:00:00]}  Rb2 {[%clk 0:00:00]} 50. Rc3 {[%clk 0:00:00]}  a4 {[%clk 0:00:00]} 51. Bd5 {[%clk 0:00:00]}  a3 {[%clk 0:00:00]} 52. Rc1 {[%clk 0:00:00]}  a2 {[%clk 0:00:00]} 53. Ra1 {[%clk 0:00:00]}  Rb1 {[%clk 0:00:00]} 54. Rxa2 {[%clk 0:00:00]}  h1=Q {[%clk 0:00:00]} 55. Bxh1 {[%clk 0:00:00]}  Rxh1 {[%clk 0:00:00]} 56. Rb2 {[%clk 0:00:00]}  Rg1 {[%clk 0:00:00]} 57. Kc6 {[%clk 0:00:00]}  Rxg3 {[%clk 0:00:00]} 58. b4 {[%clk 0:00:00]}  Rc3+ {[%clk 0:00:00]} 59. Kd5 {[%clk 0:00:00]}  f6 {[%clk 0:00:00]} 60. b5 {[%clk 0:00:00]} 1-0


[Site "https://www.chess.com"]

[Event "Titled Tuesday Blitz August 16 Early 2022"]
[White "Shapiro, Daniel"]
[Black "Leve, Nitai"]
[WhiteFideId "2001780"]
[BlackFideId "2006898"]
[WhiteElo "2284"]
[BlackElo "2144"]
[Result "0-1"]
[Round "09"]
[TimeControl "180+2"]
[Date "2022.08.18"]
[WhiteClock "0:00:00"]
[BlackClock "0:00:00"]

1. d4 {[%clk 0:00:00]}  d5 {[%clk 0:00:00]} 2. c4 {[%clk 0:00:00]}  c6 {[%clk 0:00:00]} 3. Nf3 {[%clk 0:00:00]}  Nf6 {[%clk 0:00:00]} 4. Qb3 {[%clk 0:00:00]}  dxc4 {[%clk 0:00:00]} 5. Qxc4 {[%clk 0:00:00]}  g6 {[%clk 0:00:00]} 6. Bg5 {[%clk 0:00:00]}  Bg7 {[%clk 0:00:00]} 7. h3 {[%clk 0:00:00]}  O-O {[%clk 0:00:00]} 8. e3 {[%clk 0:00:00]}  Bf5 {[%clk 0:00:00]} 9. Be2 {[%clk 0:00:00]}  Ne4 {[%clk 0:00:00]} 10. Bf4 {[%clk 0:00:00]}  Nd7 {[%clk 0:00:00]} 11. O-O {[%clk 0:00:00]}  Nb6 {[%clk 0:00:00]} 12. Qb3 {[%clk 0:00:00]}  Nd5 {[%clk 0:00:00]} 13. Be5 {[%clk 0:00:00]}  f6 {[%clk 0:00:00]} 14. Bh2 {[%clk 0:00:00]}  Qb6 {[%clk 0:00:00]} 15. Nbd2 {[%clk 0:00:00]}  Kh8 {[%clk 0:00:00]} 16. Bc4 {[%clk 0:00:00]}  Qxb3 {[%clk 0:00:00]} 17. Nxb3 {[%clk 0:00:00]}  Nb6 {[%clk 0:00:00]} 18. Be2 {[%clk 0:00:00]}  Nd7 {[%clk 0:00:00]} 19. Na5 {[%clk 0:00:00]}  e5 {[%clk 0:00:00]} 20. Nxb7 {[%clk 0:00:00]}  Rab8 {[%clk 0:00:00]} 21. Na5 {[%clk 0:00:00]}  Rxb2 {[%clk 0:00:00]} 22. Bd3 {[%clk 0:00:00]}  c5 {[%clk 0:00:00]} 23. g4 {[%clk 0:00:00]}  Ng5 {[%clk 0:00:00]} 24. Bxf5 {[%clk 0:00:00]}  Nxf3+ {[%clk 0:00:00]} 25. Kg2 {[%clk 0:00:00]}  Nxh2 {[%clk 0:00:00]} 26. Bxd7 {[%clk 0:00:00]}  Nxf1 {[%clk 0:00:00]} 27. dxc5 {[%clk 0:00:00]}  Nxe3+ {[%clk 0:00:00]} 28. Kf3 {[%clk 0:00:00]}  Nc2 {[%clk 0:00:00]} 29. Rc1 {[%clk 0:00:00]}  f5 {[%clk 0:00:00]} 30. c6 {[%clk 0:00:00]}  Nd4+ {[%clk 0:00:00]} 31. Kg2 {[%clk 0:00:00]}  fxg4 {[%clk 0:00:00]} 32. Bxg4 {[%clk 0:00:00]}  Rfxf2+ {[%clk 0:00:00]} 33. Kg1 {[%clk 0:00:00]}  Rg2+ {[%clk 0:00:00]} 34. Kh1 {[%clk 0:00:00]}  Rh2+ {[%clk 0:00:00]} 35. Kg1 {[%clk 0:00:00]}  Rbg2+ {[%clk 0:00:00]} 36. Kf1 {[%clk 0:00:00]}  Rxg4 {[%clk 0:00:00]} 37. c7 {[%clk 0:00:00]}  Rh1+ {[%clk 0:00:00]} 38. Kf2 {[%clk 0:00:00]}  Rf4+ {[%clk 0:00:00]} 39. Ke3 {[%clk 0:00:00]}  Rxc1 {[%clk 0:00:00]} 40. Nc4 {[%clk 0:00:00]}  Rxc4 {[%clk 0:00:00]} 41. Kd3 {[%clk 0:00:00]}  Rxc7 {[%clk 0:00:00]} 0-1


[Site "https://www.chess.com"]

[Event "Titled Tuesday Blitz August 16 Early 2022"]
[White "Shimanov, Aleksandr"]
[Black "Bharath Subramaniyam H"]
[WhiteFideId "4198603"]
[BlackFideId "46634827"]
[WhiteElo "2605"]
[BlackElo "2346"]
[Result "1-0"]
[Round "09"]
[TimeControl "180+1"]
[Date "2022.08.16"]
[WhiteClock "0:02:09"]
[BlackClock "0:00:36"]

1. e4 {[%clk 0:03:00]}  c5 {[%clk 0:02:59]} 2. Nf3 {[%clk 0:03:00]}  e6 {[%clk 0:02:59]} 3. g3 {[%clk 0:02:59]}  Nc6 {[%clk 0:02:56]} 4. Bg2 {[%clk 0:02:59]}  Nf6 {[%clk 0:02:55]} 5. d3 {[%clk 0:02:56]}  d6 {[%clk 0:02:53]} 6. O-O {[%clk 0:02:55]}  Be7 {[%clk 0:02:52]} 7. c3 {[%clk 0:02:54]}  O-O {[%clk 0:02:53]} 8. Re1 {[%clk 0:02:53]}  Bd7 {[%clk 0:02:51]} 9. d4 {[%clk 0:02:53]}  cxd4 {[%clk 0:02:51]} 10. cxd4 {[%clk 0:02:54]}  d5 {[%clk 0:02:52]} 11. e5 {[%clk 0:02:52]}  Ne4 {[%clk 0:02:53]} 12. Nbd2 {[%clk 0:02:52]}  Nxd2 {[%clk 0:02:50]} 13. Bxd2 {[%clk 0:02:53]}  Rc8 {[%clk 0:02:49]} 14. h4 {[%clk 0:02:48]}  Qb6 {[%clk 0:02:46]} 15. Bc3 {[%clk 0:02:48]}  Bb4 {[%clk 0:02:32]} 16. h5 {[%clk 0:02:40]}  Bxc3 {[%clk 0:02:29]} 17. bxc3 {[%clk 0:02:41]}  Na5 {[%clk 0:02:15]} 18. h6 {[%clk 0:02:41]}  g6 {[%clk 0:02:09]} 19. Nh2 {[%clk 0:02:36]}  Rxc3 {[%clk 0:01:50]} 20. Ng4 {[%clk 0:02:34]}  Qc7 {[%clk 0:01:43]} 21. Qd2 {[%clk 0:02:30]}  Rc8 {[%clk 0:01:37]} 22. Nf6+ {[%clk 0:02:24]}  Kh8 {[%clk 0:01:37]} 23. Qf4 {[%clk 0:02:24]}  Qd8 {[%clk 0:00:41]} 24. Nxd7 {[%clk 0:02:15]}  f5 {[%clk 0:00:37]} 25. exf6 {[%clk 0:02:09]}  Qxd7 {[%clk 0:00:36]} 26. f7 {[%clk 0:02:09]} 1-0


[Site "https://www.chess.com"]

[Event "Titled Tuesday Blitz August 16 Early 2022"]
[White "Shohat, Yotam"]
[Black "Melikhov, Evgeny V."]
[WhiteFideId "2813955"]
[BlackFideId "4122046"]
[WhiteElo "2119"]
[BlackElo "1963"]
[Result "0-1"]
[Round "09"]
[TimeControl "180+2"]
[Date "2022.08.18"]
[WhiteClock "0:00:00"]
[BlackClock "0:00:00"]

1. e4 {[%clk 0:00:00]}  e5 {[%clk 0:00:00]} 2. Nf3 {[%clk 0:00:00]}  Nc6 {[%clk 0:00:00]} 3. Bb5 {[%clk 0:00:00]}  a6 {[%clk 0:00:00]} 4. Bxc6 {[%clk 0:00:00]}  dxc6 {[%clk 0:00:00]} 5. O-O {[%clk 0:00:00]}  f6 {[%clk 0:00:00]} 6. d4 {[%clk 0:00:00]}  exd4 {[%clk 0:00:00]} 7. Nxd4 {[%clk 0:00:00]}  c5 {[%clk 0:00:00]} 8. Nb3 {[%clk 0:00:00]}  Qxd1 {[%clk 0:00:00]} 9. Rxd1 {[%clk 0:00:00]}  Bd7 {[%clk 0:00:00]} 10. Bf4 {[%clk 0:00:00]}  O-O-O {[%clk 0:00:00]} 11. Nc3 {[%clk 0:00:00]}  Be6 {[%clk 0:00:00]} 12. Rxd8+ {[%clk 0:00:00]}  Kxd8 {[%clk 0:00:00]} 13. Rd1+ {[%clk 0:00:00]}  Kc8 {[%clk 0:00:00]} 14. Nd5 {[%clk 0:00:00]}  Bxd5 {[%clk 0:00:00]} 15. Rxd5 {[%clk 0:00:00]}  b6 {[%clk 0:00:00]} 16. a4 {[%clk 0:00:00]}  Ne7 {[%clk 0:00:00]} 17. Rd1 {[%clk 0:00:00]}  Nc6 {[%clk 0:00:00]} 18. c4 {[%clk 0:00:00]}  g5 {[%clk 0:00:00]} 19. Bg3 {[%clk 0:00:00]}  h5 {[%clk 0:00:00]} 20. h3 {[%clk 0:00:00]}  h4 {[%clk 0:00:00]} 21. Bh2 {[%clk 0:00:00]}  Be7 {[%clk 0:00:00]} 22. f3 {[%clk 0:00:00]}  Rd8 {[%clk 0:00:00]} 23. Rxd8+ {[%clk 0:00:00]}  Bxd8 {[%clk 0:00:00]} 24. Kf2 {[%clk 0:00:00]}  Kd7 {[%clk 0:00:00]} 25. Ke3 {[%clk 0:00:00]}  Be7 {[%clk 0:00:00]} 26. Kd3 {[%clk 0:00:00]}  Bd6 {[%clk 0:00:00]} 27. Bg1 {[%clk 0:00:00]}  Be5 {[%clk 0:00:00]} 28. Bxc5 {[%clk 0:00:00]}  bxc5 {[%clk 0:00:00]} 29. Nxc5+ {[%clk 0:00:00]}  Kd6 {[%clk 0:00:00]} 30. Nxa6 {[%clk 0:00:00]}  Bxb2 {[%clk 0:00:00]} 31. c5+ {[%clk 0:00:00]}  Kd7 {[%clk 0:00:00]} 32. Kc4 {[%clk 0:00:00]}  Ne5+ {[%clk 0:00:00]} 33. Kb5 {[%clk 0:00:00]}  Nd3 {[%clk 0:00:00]} 34. Nb8+ {[%clk 0:00:00]}  Kc8 {[%clk 0:00:00]} 35. Nc6 {[%clk 0:00:00]}  Ba3 {[%clk 0:00:00]} 36. Ne7+ {[%clk 0:00:00]}  Kd7 {[%clk 0:00:00]} 37. Nd5 {[%clk 0:00:00]}  c6+ {[%clk 0:00:00]} 38. Kc4 {[%clk 0:00:00]}  cxd5+ {[%clk 0:00:00]} 39. Kxd3 {[%clk 0:00:00]}  dxe4+ {[%clk 0:00:00]} 40. Kxe4 {[%clk 0:00:00]}  Bxc5 {[%clk 0:00:00]} 41. Kf5 {[%clk 0:00:00]}  Bd4 {[%clk 0:00:00]} 42. f4 {[%clk 0:00:00]}  Be3 {[%clk 0:00:00]} 43. fxg5 {[%clk 0:00:00]}  fxg5 {[%clk 0:00:00]} 44. Kg4 {[%clk 0:00:00]}  Bf4 {[%clk 0:00:00]} 45. Kf5 {[%clk 0:00:00]}  Kc6 {[%clk 0:00:00]} 46. Kg4 {[%clk 0:00:00]}  Kb6 {[%clk 0:00:00]} 47. Kf3 {[%clk 0:00:00]}  Ka5 {[%clk 0:00:00]} 48. g3 {[%clk 0:00:00]}  Bxg3 {[%clk 0:00:00]} 49. Kg4 {[%clk 0:00:00]}  Bf4 {[%clk 0:00:00]} 0-1


[Site "https://www.chess.com"]

[Event "Titled Tuesday Blitz August 16 Early 2022"]
[White "Simonovic, Miroslav"]
[Black "Ciuffoletti, Paolo"]
[WhiteFideId "919152"]
[BlackFideId "807630"]
[WhiteElo "2043"]
[BlackElo "2143"]
[Result "1-0"]
[Round "09"]
[TimeControl "180+2"]
[Date "2022.08.18"]
[WhiteClock "0:00:00"]
[BlackClock "0:00:00"]

1. d4 {[%clk 0:00:00]}  d5 {[%clk 0:00:00]} 2. Bg5 {[%clk 0:00:00]}  Nd7 {[%clk 0:00:00]} 3. e3 {[%clk 0:00:00]}  Ngf6 {[%clk 0:00:00]} 4. c4 {[%clk 0:00:00]}  c6 {[%clk 0:00:00]} 5. Nc3 {[%clk 0:00:00]}  g6 {[%clk 0:00:00]} 6. cxd5 {[%clk 0:00:00]}  cxd5 {[%clk 0:00:00]} 7. Bb5 {[%clk 0:00:00]}  a6 {[%clk 0:00:00]} 8. Bxf6 {[%clk 0:00:00]}  exf6 {[%clk 0:00:00]} 9. Be2 {[%clk 0:00:00]}  Nb6 {[%clk 0:00:00]} 10. Bf3 {[%clk 0:00:00]}  Bb4 {[%clk 0:00:00]} 11. Ne2 {[%clk 0:00:00]}  O-O {[%clk 0:00:00]} 12. O-O {[%clk 0:00:00]}  Be6 {[%clk 0:00:00]} 13. a3 {[%clk 0:00:00]}  Bxc3 {[%clk 0:00:00]} 14. Nxc3 {[%clk 0:00:00]}  Rc8 {[%clk 0:00:00]} 15. Qb3 {[%clk 0:00:00]}  Rc6 {[%clk 0:00:00]} 16. Rac1 {[%clk 0:00:00]}  Nc4 {[%clk 0:00:00]} 17. Qxb7 {[%clk 0:00:00]}  Rb6 {[%clk 0:00:00]} 18. Qa7 {[%clk 0:00:00]}  Rxb2 {[%clk 0:00:00]} 19. Rfd1 {[%clk 0:00:00]}  Rb3 {[%clk 0:00:00]} 20. Qxa6 {[%clk 0:00:00]}  Rxa3 {[%clk 0:00:00]} 21. Qc6 {[%clk 0:00:00]}  Ra5 {[%clk 0:00:00]} 22. Nxd5 {[%clk 0:00:00]}  Nb2 {[%clk 0:00:00]} 23. Nxf6+ {[%clk 0:00:00]}  Qxf6 {[%clk 0:00:00]} 24. Rd2 {[%clk 0:00:00]}  Nc4 {[%clk 0:00:00]} 25. Rxc4 {[%clk 0:00:00]}  Bxc4 {[%clk 0:00:00]} 26. Qxf6 {[%clk 0:00:00]}  Ra1+ {[%clk 0:00:00]} 27. Rd1 {[%clk 0:00:00]}  Rfa8 {[%clk 0:00:00]} 28. d5 {[%clk 0:00:00]}  Rxd1+ {[%clk 0:00:00]} 29. Bxd1 {[%clk 0:00:00]}  Ra1 {[%clk 0:00:00]} 30. Qxa1 {[%clk 0:00:00]} 1-0


[Site "https://www.chess.com"]

[Event "Titled Tuesday Blitz August 16 Early 2022"]
[White "So, Wesley"]
[Black "Timofeev, Artyom"]
[WhiteFideId "5202213"]
[BlackFideId "4140419"]
[WhiteElo "2763"]
[BlackElo "2578"]
[Result "1-0"]
[Round "09"]
[TimeControl "180+1"]
[Date "2022.08.16"]
[WhiteClock "0:00:07"]
[BlackClock "0:00:13"]

1. e4 {[%clk 0:03:00]}  e5 {[%clk 0:02:58]} 2. Nf3 {[%clk 0:03:00]}  Nf6 {[%clk 0:02:58]} 3. Nxe5 {[%clk 0:02:59]}  d6 {[%clk 0:02:57]} 4. Nf3 {[%clk 0:02:59]}  Nxe4 {[%clk 0:02:58]} 5. Bd3 {[%clk 0:03:00]}  Nf6 {[%clk 0:02:56]} 6. O-O {[%clk 0:03:00]}  Be7 {[%clk 0:02:56]} 7. Re1 {[%clk 0:03:00]}  O-O {[%clk 0:02:56]} 8. h3 {[%clk 0:03:00]}  c5 {[%clk 0:02:52]} 9. Bf1 {[%clk 0:02:51]}  Nc6 {[%clk 0:02:52]} 10. d4 {[%clk 0:02:51]}  Bf5 {[%clk 0:02:51]} 11. c3 {[%clk 0:02:50]}  cxd4 {[%clk 0:02:39]} 12. Nxd4 {[%clk 0:02:51]}  Bg6 {[%clk 0:02:40]} 13. Be3 {[%clk 0:02:42]}  Nd5 {[%clk 0:02:35]} 14. Bc1 {[%clk 0:02:41]}  Bf6 {[%clk 0:02:20]} 15. Nf3 {[%clk 0:02:34]}  Nc7 {[%clk 0:02:16]} 16. Nbd2 {[%clk 0:02:24]}  d5 {[%clk 0:02:14]} 17. Nb3 {[%clk 0:02:24]}  Ne6 {[%clk 0:02:14]} 18. Be3 {[%clk 0:02:24]}  Bh5 {[%clk 0:02:11]} 19. g4 {[%clk 0:02:14]}  Bg6 {[%clk 0:02:11]} 20. Bg2 {[%clk 0:02:12]}  Be4 {[%clk 0:02:08]} 21. Nbd2 {[%clk 0:01:42]}  Bg6 {[%clk 0:02:07]} 22. Nb3 {[%clk 0:01:31]}  Be4 {[%clk 0:02:07]} 23. Qd2 {[%clk 0:01:25]}  h6 {[%clk 0:02:06]} 24. Rad1 {[%clk 0:01:25]}  Re8 {[%clk 0:02:03]} 25. Nfd4 {[%clk 0:01:12]}  Bxg2 {[%clk 0:02:00]} 26. Kxg2 {[%clk 0:01:13]}  Bxd4 {[%clk 0:01:55]} 27. Nxd4 {[%clk 0:01:05]}  Ncxd4 {[%clk 0:01:55]} 28. Bxd4 {[%clk 0:01:06]}  Qa5 {[%clk 0:01:52]} 29. a3 {[%clk 0:01:04]}  Rad8 {[%clk 0:01:52]} 30. f3 {[%clk 0:00:57]}  a6 {[%clk 0:01:49]} 31. Bf2 {[%clk 0:00:53]}  Qb5 {[%clk 0:01:48]} 32. Re5 {[%clk 0:00:52]}  Qb3 {[%clk 0:01:40]} 33. Rde1 {[%clk 0:00:45]}  Rf8 {[%clk 0:01:36]} 34. f4 {[%clk 0:00:44]}  b6 {[%clk 0:01:17]} 35. h4 {[%clk 0:00:42]}  Nc5 {[%clk 0:01:16]} 36. R1e2 {[%clk 0:00:31]}  Ne4 {[%clk 0:01:05]} 37. Qc2 {[%clk 0:00:32]}  Qxc2 {[%clk 0:00:59]} 38. Rxc2 {[%clk 0:00:31]}  b5 {[%clk 0:01:00]} 39. Bd4 {[%clk 0:00:31]}  Rfe8 {[%clk 0:00:59]} 40. Kf3 {[%clk 0:00:25]}  f6 {[%clk 0:00:59]} 41. Rxe8+ {[%clk 0:00:24]}  Rxe8 {[%clk 0:00:59]} 42. f5 {[%clk 0:00:20]}  Kf7 {[%clk 0:00:59]} 43. b4 {[%clk 0:00:17]}  Rc8 {[%clk 0:00:58]} 44. h5 {[%clk 0:00:16]}  Ke7 {[%clk 0:00:56]} 45. Ke3 {[%clk 0:00:17]}  Kd6 {[%clk 0:00:56]} 46. Kd3 {[%clk 0:00:17]}  Kc6 {[%clk 0:00:54]} 47. Ra2 {[%clk 0:00:17]}  Kb7 {[%clk 0:00:25]} 48. a4 {[%clk 0:00:17]}  bxa4 {[%clk 0:00:25]} 49. Rxa4 {[%clk 0:00:18]}  Nd6 {[%clk 0:00:26]} 50. Ra2 {[%clk 0:00:14]}  Re8 {[%clk 0:00:25]} 51. Bc5 {[%clk 0:00:14]}  Nb5 {[%clk 0:00:24]} 52. Re2 {[%clk 0:00:06]}  Rxe2 {[%clk 0:00:15]} 53. Kxe2 {[%clk 0:00:07]}  Nc7 {[%clk 0:00:12]} 54. Bf8 {[%clk 0:00:06]}  Ne8 {[%clk 0:00:12]} 55. Kd3 {[%clk 0:00:07]}  Kc6 {[%clk 0:00:13]} 56. Kd4 {[%clk 0:00:07]} 1-0


[Site "https://www.chess.com"]